fUSD/lending_fUSD_20260528
["ID","MTS","AMOUNT","RATE_DAILY","PERIOD"]
[423216132,1779939031000,-25.08330128,0.00013503,2]
[423216186,1779939032000,-200.0,0.00014,5]
[423216192,1779939032000,-4962.19737034,0.00014068,2]
[423216189,1779939032000,-143193.2423,0.00014051,2]
[423216185,1779939032000,-250.0,0.00014,2]
[423216180,1779939032000,-324.20458212,0.00013963,2]
[423216184,1779939032000,-166.66,0.00013973,2]
[423216183,1779939032000,-4962.19737043,0.00013964,2]
[423216191,1779939032000,-327.9039677,0.00014064,2]
[423216182,1779939032000,-441.12773838,0.00013963,2]
[423216188,1779939032000,-167.7236659,0.00014051,2]
[423216198,1779939032000,-4962.19737034,0.00014172,2]
[423216195,1779939032000,-166.66,0.0001411,2]
[423216200,1779939032000,-700.0,0.000142,5]
[423216197,1779939032000,-549.8101686,0.00014151,2]
[423216169,1779939032000,-30018.33,0.00013836,2]
[423216203,1779939032000,-150.0,0.00014237,2]
[423216201,1779939032000,-215.50460005,0.00014222,2]
[423216205,1779939032000,-166.66,0.00014247,2]
[423216212,1779939032000,-500.0,0.00014352,2]
[423216210,1779939032000,-500.0,0.00014352,2]
[423216215,1779939032000,-500.0,0.00014352,2]
[423216214,1779939032000,-500.0,0.00014352,2]
[423216193,1779939032000,-500.0,0.000141,5]
[423216176,1779939032000,-180.92060493,0.0001395,2]
[423216174,1779939032000,-150.0,0.00013946,2]
[423216166,1779939032000,-9682.96,0.00013836,2]
[423216143,1779939032000,-500.0,0.00013698,2]
[423216145,1779939032000,-775.42089332,0.00013698,2]
[423216142,1779939032000,-424.57910668,0.00013698,2]
[423216144,1779939032000,-500.0,0.00013698,2]
[423216147,1779939032000,-200.0,0.00013699,2]
[423216149,1779939032000,-1374.81,0.00013699,2]
[423216151,1779939032000,-500.0,0.00013699,2]
[423216159,1779939032000,-500.0,0.00013699,2]
[423216146,1779939032000,-166.66,0.00013699,2]
[423216148,1779939032000,-9999.99,0.00013699,2]
[423216179,1779939032000,-10591.5559,0.00013951,2]
[423216150,1779939032000,-500.0,0.00013699,2]
[423216154,1779939032000,-500.0,0.00013699,2]
[423216155,1779939032000,-500.0,0.00013699,2]
[423216152,1779939032000,-500.0,0.00013699,2]
[423216153,1779939032000,-226.59585617,0.00013699,2]
[423216161,1779939032000,-230.0,0.00013835,2]
[423216163,1779939032000,-150.99,0.00013836,2]
[423216172,1779939032000,-160.75,0.00013905,2]
[423216171,1779939032000,-166.66,0.00013836,2]
[423216216,1779939032000,-500.0,0.00014352,2]
[423216165,1779939032000,-9999.99,0.00013836,2]
[423216157,1779939032000,-500.0,0.00013699,2]
[423216209,1779939032000,-160.75,0.00014349,2]
[423216260,1779939032000,-150.0,0.00014352,2]
[423216207,1779939032000,-1000.0,0.000143,5]
[423216255,1779939032000,-150.0,0.00014352,2]
[423216258,1779939032000,-500.0,0.00014352,2]
[423216270,1779939032000,-2500.0,0.00014368,2]
[423216284,1779939032000,-200.0,0.000146,5]
[423216272,1779939032000,-4962.19737034,0.0001438,2]
[423216278,1779939032000,-4962.19737034,0.00014484,2]
[423216280,1779939032000,-200.0,0.000145,5]
[423216286,1779939032000,-4962.19737034,0.00014692,2]
[423216265,1779939032000,-150.0,0.00014352,2]
[423216287,1779939032000,-200.0,0.000147,5]
[423216249,1779939032000,-500.0,0.00014352,2]
[423216267,1779939032000,-511.70039259,0.00014352,2]
[423216276,1779939032000,-1200.0,0.000144,5]
[423216282,1779939032000,-4962.19737034,0.00014588,2]
[423216263,1779939032000,-500.0,0.00014352,2]
[423216269,1779939032000,-153.23578717,0.00014352,2]
[423216289,1779939032000,-875.31028685,0.000147,2]
[423216291,1779939032000,-875.31028682,0.00014729,2]
[423216293,1779939032000,-875.31028682,0.00014757,2]
[423216295,1779939032000,-9.03267647,0.00014786,2]
[423216311,1779939032000,-399.99999999,0.00013698,2]
[423216218,1779939032000,-242.47385488,0.00014352,2]
[423216274,1779939032000,-166.66,0.00014384,2]
[423216252,1779939032000,-500.0,0.00014352,2]
[423216262,1779939032000,-150.0,0.00014352,2]
[423216248,1779939032000,-500.0,0.00014352,2]
[423216257,1779939032000,-245.14097534,0.00014352,2]
[423216221,1779939032000,-500.0,0.00014352,2]
[423216219,1779939032000,-500.0,0.00014352,2]
[423216222,1779939032000,-500.0,0.00014352,2]
[423216224,1779939032000,-270.1888691,0.00014352,2]
[423216225,1779939032000,-500.0,0.00014352,2]
[423216227,1779939032000,-500.0,0.00014352,2]
[423216232,1779939032000,-500.0,0.00014352,2]
[423216228,1779939032000,-500.0,0.00014352,2]
[423216231,1779939032000,-500.0,0.00014352,2]
[423216238,1779939032000,-249.0456141,0.00014352,2]
[423216229,1779939032000,-500.0,0.00014352,2]
[423216234,1779939032000,-500.0,0.00014352,2]
[423216235,1779939032000,-166.3264663,0.00014352,2]
[423216242,1779939032000,-500.0,0.00014352,2]
[423216237,1779939032000,-500.0,0.00014352,2]
[423216243,1779939032000,-487.75219768,0.00014352,2]
[423216244,1779939032000,-500.0,0.00014352,2]
[423216246,1779939032000,-500.0,0.00014352,2]
[423216206,1779939032000,-4962.19737034,0.00014276,2]
[423216251,1779939032000,-500.0,0.00014352,2]
[423216254,1779939032000,-500.0,0.00014352,2]
[423216240,1779939032000,-500.0,0.00014352,2]
[423216427,1779939037000,-500.0,0.00013699,2]
[423216424,1779939037000,-500.0,0.00013698,2]
[423216425,1779939037000,-500.0,0.00013698,2]
[423216423,1779939037000,-100.00000001,0.00013698,2]
[423216426,1779939037000,-500.0,0.00013698,2]
[423216428,1779939037000,-500.0,0.00013699,2]
[423216430,1779939037000,-618.5,0.00013851,2]
[423216429,1779939037000,-71582.48135771,0.00013851,2]
[423216433,1779939037000,-866.27761035,0.00014786,2]
[423216432,1779939037000,-2000.0,0.00014009,2]
[423216431,1779939037000,-196863.80294229,0.00013851,2]
[423216450,1779939038000,-1732.24919586,0.000149,2]
[423216444,1779939038000,-25000.0,0.00014891,3]
[423216443,1779939038000,-25000.0,0.00014882,3]
[423216445,1779939038000,-155.45,0.00014899,2]
[423216441,1779939038000,-875.31028682,0.00014871,2]
[423216439,1779939038000,-25000.0,0.00014856,3]
[423216438,1779939038000,-875.31028682,0.00014843,2]
[423216447,1779939038000,-10000.0,0.000149,2]
[423216446,1779939038000,-25000.0,0.000149,3]
[423216449,1779939038000,-4962.19737034,0.000149,2]
[423216440,1779939038000,-25000.0,0.00014865,3]
[423216437,1779939038000,-875.31028682,0.00014814,2]
[423216434,1779939038000,-160.75,0.00014793,2]
[423216435,1779939038000,-4962.19737034,0.00014796,2]
[423216436,1779939038000,-200.0,0.000148,5]
[423216442,1779939038000,-25000.0,0.00014874,3]
[423216448,1779939038000,-5000.0,0.000149,2]
[423216451,1779939038000,-619.0,0.000149,5]
[423216463,1779939038000,-26975.47955352,0.00015,2]
[423216461,1779939038000,-598.96763221,0.00015,2]
[423216471,1779939038000,-37007.10863697,0.00015,2]
[423216470,1779939038000,-6214.805094,0.00015,2]
[423216460,1779939038000,-12636041.76654152,0.00015,2]
[423216468,1779939038000,-2805.69402002,0.00015,2]
[423216467,1779939038000,-9973.00893146,0.00015,2]
[423216466,1779939038000,-4849.92981196,0.00015,2]
[423216464,1779939038000,-326.00000013,0.00015,2]
[423216465,1779939038000,-2696.63816118,0.00015,2]
[423216462,1779939038000,-741.46164266,0.00015,2]
[423216469,1779939038000,-2063.85154333,0.00015,2]
[423216456,1779939038000,-291.23900909,0.00014908,2]
[423216455,1779939038000,-14129.36749345,0.000149,2]
[423216458,1779939038000,-156.11323374,0.0001499,2]
[423216454,1779939038000,-2060.80926094,0.000149,2]
[423216453,1779939038000,-875.31028682,0.000149,2]
[423216457,1779939038000,-150.00000001,0.00014986,2]
[423216459,1779939038000,-1734.85718942,0.00014999,5]
[423216452,1779939038000,-19989.21030894,0.000149,3]
[423216488,1779939039000,-423.24480803,0.00015,2]
[423216490,1779939040000,-1765.15699807,0.00015,2]
[423216489,1779939040000,-222000.0,0.00015,2]
[423216492,1779939040000,-3844809.79929086,0.00015,2]
[423216495,1779939040000,-8091.36035297,0.00015,2]
[423216496,1779939040000,-215833.7592316,0.00015,2]
[423216491,1779939040000,-373.50240215,0.00015,2]
[423216494,1779939040000,-2078.68861048,0.00015,2]
[423216493,1779939040000,-166.05,0.00015,2]
[423216523,1779939043000,-3468.01200384,0.00015,2]
[423216520,1779939043000,-1411.96890265,0.00015,2]
[423216521,1779939043000,-400.00129797,0.00015,2]
[423216519,1779939043000,-4198.19432367,0.00015,2]
[423216522,1779939043000,-36861.0733898,0.00015,2]
[423216524,1779939043000,-333.79533273,0.00015,2]
[423216525,1779939043000,-3408.20446918,0.00015,2]
[423216526,1779939043000,-39477.32159416,0.00015,2]
[423216527,1779939043000,-3294.95058901,0.00015,2]
[423216528,1779939043000,-107.34656898,0.00015,2]
[423216529,1779939043000,-360.06500271,0.00015,2]
[423216530,1779939043000,-388.64699996,0.00015,2]
[423216531,1779939043000,-410.36559301,0.00015,2]
[423216554,1779939045000,-9518.54089525,0.00015,2]
[423216556,1779939046000,-442.95950097,0.00015,2]
[423216557,1779939046000,-298.1,0.00015,2]
[423216558,1779939046000,-370.06,0.00015,2]
[423216560,1779939046000,-11375.57223511,0.00015,2]
[423216555,1779939046000,-7429.89057475,0.00015,2]
[423216561,1779939046000,-7842.01349031,0.00015,2]
[423216563,1779939046000,-486.49414,0.00015,2]
[423216559,1779939046000,-30888.49786066,0.00015,2]
[423216564,1779939046000,-890.81034025,0.00015,2]
[423216562,1779939046000,-2668.57119929,0.00015,2]
[423216568,1779939709000,-162.77,0.00013432,2]
[423216569,1779940001000,-409.0994867,0.00012935,2]
[423216570,1779940029000,-675.5395544,0.00012935,2]
[423216571,1779940066000,-207.43761712,0.000129,2]
[423216572,1779940119000,-2805.69402002,0.00012935,2]
[423216573,1779940139000,-453.69024577,0.00013,2]
[423216575,1779940193000,-4849.92981196,0.00013151,2]
[423216576,1779940213000,-2696.63816118,0.00013151,2]
[423216578,1779940233000,-255.67,0.00013173,2]
[423216577,1779940233000,-1065.11202686,0.00013151,2]
[423216611,1779940234000,-3619.23588171,0.00013622,2]
[423216624,1779940234000,-217.20461046,0.0001385,2]
[423216618,1779940234000,-162.77,0.00013768,2]
[423216619,1779940234000,-150.0,0.00013787,2]
[423216612,1779940234000,-165.82,0.00013646,2]
[423216634,1779940234000,-150.0,0.00013951,2]
[423216614,1779940234000,-150.0,0.00013675,2]
[423216615,1779940234000,-200.0,0.00013699,2]
[423216609,1779940234000,-851.0,0.00013598,2]
[423216610,1779940234000,-150.0,0.00013608,2]
[423216617,1779940234000,-150.0,0.00013727,2]
[423216613,1779940234000,-150.0,0.00013668,2]
[423216625,1779940234000,-500.0,0.0001385,2]
[423216635,1779940234000,-150.0,0.00013967,2]
[423216620,1779940234000,-150.0,0.00013787,2]
[423216630,1779940234000,-55199.7066,0.00013851,2]
[423216622,1779940234000,-150.0,0.00013847,2]
[423216623,1779940234000,-222.99941076,0.0001385,2]
[423216626,1779940234000,-242.68519791,0.0001385,2]
[423216628,1779940234000,-232.94657872,0.0001385,2]
[423216621,1779940234000,-150.0,0.00013787,2]
[423216627,1779940234000,-500.0,0.0001385,2]
[423216631,1779940234000,-150.0,0.00013862,2]
[423216636,1779940234000,-150.0,0.00013987,2]
[423216633,1779940234000,-214.03806367,0.00013921,2]
[423216608,1779940234000,-931.65050153,0.00013556,2]
[423216629,1779940234000,-8208.9731,0.00013851,2]
[423216606,1779940234000,-151.0,0.00013545,2]
[423216594,1779940234000,-2000.0,0.00013429,2]
[423216605,1779940234000,-781.2,0.00013518,2]
[423216579,1779940234000,-200.0,0.00013247,2]
[423216580,1779940234000,-150.0,0.00013282,2]
[423216585,1779940234000,-500.0,0.00013401,2]
[423216587,1779940234000,-500.0,0.00013401,2]
[423216582,1779940234000,-300.0,0.000134,2]
[423216591,1779940234000,-12930.96,0.00013402,2]
[423216590,1779940234000,-500.0,0.00013401,2]
[423216581,1779940234000,-1200.0,0.000134,2]
[423216584,1779940234000,-628.52672083,0.00013401,2]
[423216588,1779940234000,-500.0,0.00013401,2]
[423216583,1779940234000,-500.0,0.00013401,2]
[423216592,1779940234000,-150.0,0.00013413,2]
[423216589,1779940234000,-500.0,0.00013401,2]
[423216586,1779940234000,-500.0,0.00013401,2]
[423216600,1779940234000,-151.20586673,0.00013488,2]
[423216601,1779940234000,-150.0,0.00013488,2]
[423216593,1779940234000,-150.0,0.00013428,2]
[423216602,1779940234000,-150.0,0.00013488,2]
[423216604,1779940234000,-150.0,0.00013488,2]
[423216603,1779940234000,-150.0,0.00013488,2]
[423216595,1779940234000,-150.99,0.00013429,2]
[423216596,1779940234000,-2773.63,0.00013429,2]
[423216597,1779940234000,-9999.99,0.00013429,2]
[423216598,1779940234000,-155.83277479,0.00013488,2]
[423216607,1779940234000,-150.0,0.00013548,2]
[423216616,1779940234000,-525.17731735,0.00013699,2]
[423216637,1779940234000,-250.0,0.00014,2]
[423216599,1779940234000,-150.0,0.00013488,2]
[423216639,1779940234000,-150.0,0.0001405,2]
[423216681,1779940234000,-150.0,0.00014507,2]
[423216680,1779940234000,-500.0,0.00014504,2]
[423216669,1779940234000,-500.0,0.00014504,2]
[423216695,1779940234000,-500.0,0.00014625,2]
[423216672,1779940234000,-500.0,0.00014504,2]
[423216674,1779940234000,-500.0,0.00014504,2]
[423216673,1779940234000,-500.0,0.00014504,2]
[423216676,1779940234000,-504.98236772,0.00014504,2]
[423216675,1779940234000,-722.2,0.00014504,2]
[423216679,1779940234000,-500.0,0.00014504,2]
[423216678,1779940234000,-500.0,0.00014504,2]
[423216677,1779940234000,-816.73,0.00014504,2]
[423216670,1779940234000,-500.0,0.00014504,2]
[423216682,1779940234000,-255.0,0.00014543,2]
[423216687,1779940234000,-500.0,0.00014625,2]
[423216691,1779940234000,-500.0,0.00014625,2]
[423216686,1779940234000,-500.0,0.00014625,2]
[423216690,1779940234000,-500.0,0.00014625,2]
[423216694,1779940234000,-500.0,0.00014625,2]
[423216685,1779940234000,-500.0,0.00014625,2]
[423216683,1779940234000,-150.0,0.00014567,2]
[423216688,1779940234000,-500.0,0.00014625,2]
[423216689,1779940234000,-500.0,0.00014625,2]
[423216693,1779940234000,-500.0,0.00014625,2]
[423216692,1779940234000,-500.0,0.00014625,2]
[423216641,1779940234000,-150.0,0.00014087,2]
[423216684,1779940234000,-150.0,0.00014612,2]
[423216665,1779940234000,-500.0,0.00014504,2]
[423216671,1779940234000,-500.0,0.00014504,2]
[423216666,1779940234000,-500.0,0.00014504,2]
[423216638,1779940234000,-150.0,0.00014027,2]
[423216632,1779940234000,-150.0,0.00013907,2]
[423216642,1779940234000,-150.0,0.00014087,2]
[423216640,1779940234000,-150.0,0.00014087,2]
[423216643,1779940234000,-162.77,0.00014103,2]
[423216655,1779940234000,-150.0,0.00014387,2]
[423216668,1779940234000,-500.0,0.00014504,2]
[423216647,1779940234000,-300.0,0.00014228,2]
[423216646,1779940234000,-150.0,0.00014207,2]
[423216648,1779940234000,-300.0,0.00014228,2]
[423216644,1779940234000,-215.50460005,0.00014132,2]
[423216649,1779940234000,-300.0,0.00014228,2]
[423216651,1779940234000,-300.0,0.00014228,2]
[423216650,1779940234000,-300.0,0.00014228,2]
[423216645,1779940234000,-150.0,0.00014147,2]
[423216652,1779940234000,-150.0,0.00014237,2]
[423216654,1779940234000,-150.0,0.00014327,2]
[423216661,1779940234000,-150.0,0.00014447,2]
[423216664,1779940234000,-150.0,0.00014487,2]
[423216667,1779940234000,-500.0,0.00014504,2]
[423216662,1779940234000,-300.0,0.00014466,2]
[423216657,1779940234000,-150.0,0.00014387,2]
[423216663,1779940234000,-296.13003009,0.00014466,2]
[423216658,1779940234000,-150.0,0.00014424,2]
[423216659,1779940234000,-162.77,0.00014439,2]
[423216660,1779940234000,-404.80519631,0.00014442,2]
[423216656,1779940234000,-150.0,0.00014387,2]
[423216653,1779940234000,-150.0,0.00014267,2]
[423216705,1779940235000,-150.0,0.00014687,2]
[423216708,1779940235000,-887.31146706,0.0001472,2]
[423216711,1779940235000,-501.53039463,0.00014726,2]
[423216710,1779940235000,-500.0,0.00014726,2]
[423216716,1779940235000,-1680.0,0.0001474,2]
[423216704,1779940235000,-150.0,0.00014687,2]
[423216702,1779940235000,-7132.92881061,0.00014672,2]
[423216699,1779940235000,-500.0,0.00014625,2]
[423216701,1779940235000,-150.0,0.00014627,2]
[423216700,1779940235000,-259.32841378,0.00014625,2]
[423216697,1779940235000,-500.0,0.00014625,2]
[423216698,1779940235000,-500.0,0.00014625,2]
[423216696,1779940235000,-500.0,0.00014625,2]
[423216715,1779940235000,-623.23869147,0.00014726,2]
[423216703,1779940235000,-150.0,0.00014687,2]
[423216707,1779940235000,-7132.92881054,0.00014697,2]
[423216721,1779940235000,-4508.05599949,0.00014756,2]
[423216709,1779940235000,-7132.92881054,0.00014723,2]
[423216706,1779940235000,-2500.0,0.00014695,2]
[423216729,1779940235000,-552.3873477,0.00014786,3]
[423216727,1779940235000,-5557.72215394,0.00014777,3]
[423216718,1779940235000,-150.0,0.00014747,2]
[423216726,1779940235000,-19442.27784606,0.00014777,3]
[423216724,1779940235000,-7132.92881054,0.00014773,2]
[423216723,1779940235000,-4508.05599942,0.00014772,2]
[423216725,1779940235000,-162.77,0.00014775,2]
[423216719,1779940235000,-7132.92881054,0.00014748,2]
[423216722,1779940235000,-887.31146704,0.00014771,2]
[423216717,1779940235000,-887.31146704,0.00014746,2]
[423216714,1779940235000,-500.0,0.00014726,2]
[423216712,1779940235000,-500.0,0.00014726,2]
[423216713,1779940235000,-500.0,0.00014726,2]
[423216720,1779940235000,-162.21,0.00014756,2]
[423216728,1779940235000,-2007.82250136,0.00014786,3]
[423216750,1779940238000,-25000.0,0.0001483,3]
[423216757,1779940238000,-25000.0,0.00014856,3]
[423216753,1779940238000,-25000.0,0.00014847,3]
[423216754,1779940238000,-887.31146704,0.00014849,2]
[423216756,1779940238000,-4508.05599942,0.00014852,2]
[423216758,1779940238000,-500.0,0.00014864,2]
[423216755,1779940238000,-7132.92881054,0.00014849,2]
[423216773,1779940238000,-500.0,0.00014899,2]
[423216766,1779940238000,-25000.0,0.00014882,3]
[423216763,1779940238000,-25000.0,0.00014874,3]
[423216765,1779940238000,-7132.92881054,0.00014875,2]
[423216769,1779940238000,-500.0,0.00014899,2]
[423216767,1779940238000,-4508.05599942,0.00014884,2]
[423216764,1779940238000,-887.31146704,0.00014874,2]
[423216752,1779940238000,-25000.0,0.00014838,3]
[423216770,1779940238000,-500.0,0.00014899,2]
[423216771,1779940238000,-500.7401619,0.00014899,2]
[423216762,1779940238000,-4508.05599942,0.00014868,2]
[423216759,1779940238000,-500.0,0.00014864,2]
[423216745,1779940238000,-25000.0,0.00014812,3]
[423216761,1779940238000,-150.0,0.00014866,2]
[423216774,1779940238000,-500.0,0.00014899,2]
[423216732,1779940238000,-486.17019436,0.00014786,3]
[423216733,1779940238000,-6084.78527694,0.00014786,3]
[423216734,1779940238000,-3411.90036159,0.00014786,3]
[423216735,1779940238000,-1029.76862689,0.00014786,3]
[423216736,1779940238000,-11427.16569116,0.00014786,3]
[423216737,1779940238000,-4508.05599942,0.00014788,2]
[423216741,1779940238000,-150.0,0.00014799,2]
[423216738,1779940238000,-25000.0,0.00014794,3]
[423216740,1779940238000,-7132.92881054,0.00014799,2]
[423216739,1779940238000,-887.31146704,0.00014797,2]
[423216742,1779940238000,-25000.0,0.00014803,3]
[423216743,1779940238000,-4508.05599942,0.00014804,2]
[423216747,1779940238000,-25000.0,0.00014821,3]
[423216749,1779940238000,-7132.92881054,0.00014824,2]
[423216748,1779940238000,-887.31146704,0.00014823,2]
[423216746,1779940238000,-4508.05599942,0.0001482,2]
[423216744,1779940238000,-150.0,0.00014806,2]
[423216751,1779940238000,-4508.05599942,0.00014836,2]
[423216760,1779940238000,-25000.0,0.00014865,3]
[423216768,1779940238000,-25000.0,0.00014891,3]
[423216784,1779940238000,-500.0,0.00014899,2]
[423216776,1779940238000,-500.0,0.00014899,2]
[423216801,1779940238000,-399.79715885,0.000149,2]
[423216807,1779940238000,-184.07436078,0.00014986,2]
[423216805,1779940238000,-153.62961216,0.00014986,2]
[423216802,1779940238000,-150.0,0.00014926,2]
[423216810,1779940238000,-198.41726517,0.0001499,2]
[423216808,1779940238000,-198.41726517,0.0001499,2]
[423216809,1779940238000,-198.41726517,0.0001499,2]
[423216806,1779940238000,-293.68053697,0.00014986,2]
[423216796,1779940238000,-887.31146704,0.000149,2]
[423216803,1779940238000,-190.25070632,0.00014986,2]
[423216811,1779940238000,-500.0,0.00014994,2]
[423216812,1779940238000,-4673.0978154,0.00014995,2]
[423216814,1779940238000,-28512.1565691,0.00014995,2]
[423216815,1779940238000,-5455.6190364,0.00014996,2]
[423216813,1779940238000,-25106.806683,0.00014995,2]
[423216817,1779940238000,-3407.4195362,0.00014996,2]
[423216816,1779940238000,-6403.5688585,0.00014996,2]
[423216772,1779940238000,-500.0,0.00014899,2]
[423216804,1779940238000,-150.0,0.00014986,2]
[423216795,1779940238000,-3015.82953918,0.000149,2]
[423216800,1779940238000,-14129.36749345,0.000149,2]
[423216794,1779940238000,-2060.80926094,0.000149,2]
[423216787,1779940238000,-500.0,0.00014899,2]
[423216775,1779940238000,-500.0,0.00014899,2]
[423216786,1779940238000,-500.0,0.00014899,2]
[423216778,1779940238000,-500.0,0.00014899,2]
[423216780,1779940238000,-816.73,0.00014899,2]
[423216781,1779940238000,-500.0,0.00014899,2]
[423216777,1779940238000,-500.0,0.00014899,2]
[423216797,1779940238000,-35404.94269047,0.000149,2]
[423216785,1779940238000,-500.0,0.00014899,2]
[423216783,1779940238000,-500.0,0.00014899,2]
[423216779,1779940238000,-722.2,0.00014899,2]
[423216788,1779940238000,-500.0,0.00014899,2]
[423216789,1779940238000,-25000.0,0.000149,3]
[423216792,1779940238000,-5000.0,0.000149,2]
[423216790,1779940238000,-10000.0,0.000149,2]
[423216791,1779940238000,-25000.0,0.000149,3]
[423216799,1779940238000,-7132.92881054,0.000149,2]
[423216798,1779940238000,-1652.02497352,0.000149,2]
[423216793,1779940238000,-4508.05599942,0.000149,2]
[423216782,1779940238000,-500.0,0.00014899,2]
[423216821,1779940239000,-1734.85718942,0.00014999,5]
[423216818,1779940239000,-117006.057895,0.00014996,2]
[423216823,1779940239000,-500.0,0.00014999,2]
[423216819,1779940239000,-6333.5167564,0.00014996,2]
[423216822,1779940239000,-500.0,0.00014999,2]
[423216824,1779940239000,-500.0,0.00014999,2]
[423216820,1779940239000,-151.0,0.00014997,2]
[423216825,1779940239000,-500.0,0.00014999,2]
[423216833,1779940239000,-354.71893145,0.00014999,2]
[423216826,1779940239000,-500.0,0.00014999,2]
[423216827,1779940239000,-500.0,0.00014999,2]
[423216832,1779940239000,-500.0,0.00014999,2]
[423216835,1779940239000,-500.0,0.00014999,2]
[423216837,1779940239000,-500.0,0.00014999,2]
[423216836,1779940239000,-500.0,0.00014999,2]
[423216829,1779940239000,-500.0,0.00014999,2]
[423216976,1779940240000,-500.0,0.00014999,2]
[423216970,1779940240000,-816.73,0.00014999,2]
[423216972,1779940240000,-816.73,0.00014999,2]
[423216973,1779940240000,-816.73,0.00014999,2]
[423216967,1779940240000,-816.73,0.00014999,2]
[423216971,1779940240000,-816.73,0.00014999,2]
[423216968,1779940240000,-816.73,0.00014999,2]
[423216979,1779940240000,-500.0,0.00014999,2]
[423216969,1779940240000,-816.73,0.00014999,2]
[423216978,1779940240000,-500.0,0.00014999,2]
[423216982,1779940240000,-500.0,0.00014999,2]
[423216977,1779940240000,-500.0,0.00014999,2]
[423216981,1779940240000,-500.0,0.00014999,2]
[423216966,1779940240000,-816.73,0.00014999,2]
[423216988,1779940240000,-369.26754623,0.00014999,2]
[423216986,1779940240000,-500.0,0.00014999,2]
[423216983,1779940240000,-500.0,0.00014999,2]
[423216987,1779940240000,-526.59276587,0.00014999,2]
[423216999,1779940240000,-500.0,0.00014999,2]
[423216985,1779940240000,-500.0,0.00014999,2]
[423216984,1779940240000,-226.61703358,0.00014999,2]
[423216990,1779940240000,-500.0,0.00014999,2]
[423216980,1779940240000,-500.0,0.00014999,2]
[423216965,1779940240000,-816.73,0.00014999,2]
[423216964,1779940240000,-816.73,0.00014999,2]
[423216975,1779940240000,-500.0,0.00014999,2]
[423216938,1779940240000,-722.2,0.00014999,2]
[423216946,1779940240000,-722.2,0.00014999,2]
[423216941,1779940240000,-722.2,0.00014999,2]
[423216940,1779940240000,-722.2,0.00014999,2]
[423216948,1779940240000,-722.2,0.00014999,2]
[423216942,1779940240000,-722.2,0.00014999,2]
[423216944,1779940240000,-722.2,0.00014999,2]
[423216939,1779940240000,-722.2,0.00014999,2]
[423216949,1779940240000,-722.2,0.00014999,2]
[423216950,1779940240000,-722.2,0.00014999,2]
[423216951,1779940240000,-722.2,0.00014999,2]
[423216958,1779940240000,-816.73,0.00014999,2]
[423216957,1779940240000,-816.73,0.00014999,2]
[423216953,1779940240000,-816.73,0.00014999,2]
[423216961,1779940240000,-816.73,0.00014999,2]
[423216962,1779940240000,-816.73,0.00014999,2]
[423216955,1779940240000,-816.73,0.00014999,2]
[423216954,1779940240000,-816.73,0.00014999,2]
[423216959,1779940240000,-816.73,0.00014999,2]
[423216952,1779940240000,-722.33918136,0.00014999,2]
[423216956,1779940240000,-816.73,0.00014999,2]
[423216960,1779940240000,-816.73,0.00014999,2]
[423216974,1779940240000,-816.85810453,0.00014999,2]
[423216963,1779940240000,-816.73,0.00014999,2]
[423217001,1779940240000,-500.0,0.00014999,2]
[423216994,1779940240000,-500.0,0.00014999,2]
[423216989,1779940240000,-500.0,0.00014999,2]